bitfinex-derivatives/quotes_ETHF0:USTF0_20250629
["timestamp","ask_amount","ask_price","bid_price","bid_amount"]
[1751181511401,3.2078,2437.7,2437.6,0.82019]
[1751181511602,34.1848,2437.7,2437.6,0.82019]
[1751181512101,34.1848,2437.7,2437.6,2.24559]
[1751181512695,36.25684634,2437.7,2437.6,2.24559]
[1751181512901,36.25684634,2437.7,2437.6,0.82019]
[1751181513502,36.25584634,2437.7,2437.6,0.82019]
[1751181523611,33.04804634,2437.7,2437.6,0.82019]
[1751181538117,2.07204634,2437.7,2437.6,0.82019]
[1751181538419,4.02789,2437.9,2437.8,0.82012]
[1751181538621,34.99789,2437.9,2437.8,0.82012]
[1751181539621,37.06993634,2437.9,2437.8,0.82012]
[1751181541724,36.24984634,2437.9,2437.8,0.82012]
[1751181541929,37.06993634,2437.9,2437.8,0.82012]
[1751181542426,36.24984634,2437.9,2437.8,0.82012]
[1751181543223,37.06993634,2437.9,2437.8,0.82012]
[1751181544532,36.24984634,2437.9,2437.8,0.82012]
[1751181545022,37.06993634,2437.9,2437.8,0.82012]
[1751181547230,33.86213634,2437.9,2437.8,0.82012]
[1751181547526,37.06993634,2437.9,2437.8,0.82012]
[1751181568361,3.2078,2437.9,2437.8,0.82012]
[1751181568660,36.24584634,2437.9,2437.8,0.82012]
[1751181572064,37.06593634,2437.9,2437.8,0.82012]
[1751181573867,36.24584634,2437.9,2437.8,0.82012]
[1751181578169,37.06593634,2437.9,2437.8,0.82012]
[1751181578569,36.24584634,2437.9,2437.8,0.82012]
[1751181579172,6.09993634,2437.9,2437.8,0.82012]
[1751181579370,37.06493634,2437.9,2437.8,0.82012]
[1751181579971,36.24484634,2437.9,2437.8,0.82012]
[1751181580473,37.06493634,2437.9,2437.8,0.82012]
[1751181581865,33.85713634,2437.9,2437.8,0.82012]
[1751181582065,37.06493634,2437.9,2437.8,0.82012]
[1751181583773,36.24484634,2437.9,2437.8,0.82012]
[1751181584371,37.06493634,2437.9,2437.8,0.82012]
[1751181585371,36.24484634,2437.9,2437.8,0.82012]
[1751181585673,33.03704634,2437.9,2437.8,0.82012]
[1751181585869,36.24484634,2437.9,2437.8,0.82012]
[1751181588975,11.55284634,2437.9,2437.8,0.82012]
[1751181589273,36.24384634,2437.9,2437.8,0.82012]
[1751181590670,3.2078,2437.9,2437.8,0.82012]
[1751181590973,34.1708,2437.9,2437.8,0.82012]
[1751181591173,34.1708,2437.9,2437.8,2.22062]
[1751181591374,34.1708,2437.9,2437.8,43.02062]
[1751181592275,3.2078,2437.9,2437.8,43.02062]
[1751181592476,27.8978,2437.9,2437.8,43.02062]
[1751181593469,30.961,2438.0,2437.9,0.82009]
[1751181593770,30.961,2438.0,2437.9,2.91279]
[1751181594670,2.07204634,2438.1,2438.0,0.82006]
[1751181594983,33.03304634,2438.1,2438.0,0.82006]
[1751181595275,2.07204634,2438.1,2438.0,1.53986]
[1751181595475,33.03304634,2438.1,2438.0,1.53986]
[1751181597880,51.97736,2438.3,2438.2,0.81999]
[1751181598174,85.00740634,2438.3,2438.2,0.81999]
[1751181598379,84.18744634,2438.3,2438.2,0.81999]
[1751181598581,85.00740634,2438.3,2438.2,0.81999]
[1751181600782,84.18744634,2438.3,2438.2,0.81999]
[1751181604685,80.97964634,2438.3,2438.2,0.81999]
[1751181605185,84.18744634,2438.3,2438.2,0.81999]
[1751181605381,85.00740634,2438.3,2438.2,0.81999]
[1751181606685,54.04940634,2438.3,2438.2,0.81999]
[1751181606885,85.00540634,2438.3,2438.2,0.81999]
[1751181608695,54.04940634,2438.3,2438.2,0.81999]
[1751181608983,85.00540634,2438.3,2438.2,0.81999]
[1751181610995,54.04940634,2438.3,2438.2,0.81999]
[1751181611287,85.00440634,2438.3,2438.2,0.81999]
[1751181611588,81.79660634,2438.3,2438.2,0.81999]
[1751181611782,85.00440634,2438.3,2438.2,0.81999]
[1751181613287,39.00349268,2438.3,2438.0,0.7198]
[1751181613482,0.82009,2437.9,2437.8,0.8201]
[1751181613689,37.05493634,2437.9,2437.8,0.8201]
[1751181618085,36.23484634,2437.9,2437.8,0.8201]
[1751181618490,34.1628,2437.9,2437.8,2.89214634]
[1751181618787,3.2078,2437.9,2437.8,0.8201]
[1751181618984,34.1628,2437.9,2437.8,0.8201]
[1751181619291,30.955,2437.9,2437.8,2.2377]
[1751181619591,33.02704634,2437.9,2437.8,2.2377]
[1751181621792,2.07204634,2437.9,2437.8,2.2377]
[1751181622090,33.02704634,2437.9,2437.8,2.2377]
[1751181624793,2.07204634,2437.9,2437.8,2.2377]
[1751181624993,33.02704634,2437.9,2437.8,2.2377]
[1751181626596,8.34204634,2437.9,2437.8,2.2377]
[1751181626798,33.02704634,2437.9,2437.8,2.2377]
[1751181645120,33.02704634,2437.9,2437.8,0.8201]
[1751181645319,33.02304634,2437.9,2437.8,0.8201]
[1751181646121,8.34004634,2437.9,2437.8,0.8201]
[1751181646421,33.02204634,2437.9,2437.8,0.8201]
[1751181647415,26.75404634,2437.9,2437.8,0.8201]
[1751181649826,27.43554634,2437.9,2437.8,0.8201]
[1751181651127,2.75354634,2437.9,2437.8,0.8201]
[1751181651330,27.43554634,2437.9,2437.8,0.8201]
[1751181651627,25.3635,2437.9,2437.8,0.8201]
[1751181665734,27.43554634,2437.9,2437.8,0.8201]
[1751181668639,2.75354634,2437.9,2437.8,0.8201]
[1751181668842,27.43354634,2437.9,2437.8,0.8201]
[1751181673841,2.07204634,2438.0,2437.9,0.82009]
[1751181674150,0.7236,2438.1,2438.0,0.82006]
[1751181674449,31.6686,2438.1,2438.0,0.82006]
[1751181704860,33.74064634,2438.1,2438.0,0.82006]
[1751181712563,2.79564634,2438.1,2438.0,0.82006]
[1751181712769,33.73364634,2438.1,2438.0,0.82006]
[1751181717168,33.73264634,2438.1,2438.0,0.82006]
[1751181719073,2.79564634,2438.1,2438.0,0.82006]
[1751181719272,33.73264634,2438.1,2438.0,0.82006]
[1751181732874,33.72864634,2438.1,2438.0,0.82006]
[1751181744093,34.54866634,2438.1,2438.0,0.82006]
[1751181745495,34.54866634,2438.1,2437.8,2.45278871]
[1751181745496,0.82009,2437.9,2437.8,2.45278871]
[1751181745696,0.82012,2437.8,2437.7,2.45281871]
[1751181745897,1.48982,2437.8,2437.7,2.45281871]
[1751181746494,0.6697,2437.8,2437.7,2.45281871]
[1751181748094,0.6697,2437.8,2437.7,3.15921871]
[1751181748799,0.6697,2437.8,2437.7,1.52653]
[1751181752101,0.6697,2437.8,2437.7,0.82013]
[1751181753594,1.48982,2437.8,2437.7,0.82013]
[1751181755814,7.74982,2437.8,2437.7,0.82013]
[1751181756716,6.9297,2437.8,2437.7,0.82013]
[1751181760118,7.74983,2437.8,2437.7,0.82013]
[1751181764017,6.9297,2437.8,2437.7,0.82013]
[1751181765712,7.74983,2437.8,2437.7,0.82013]
[1751181765912,6.9297,2437.8,2437.7,0.82013]
[1751181771924,6.26,2437.8,2437.7,0.82013]
[1751181774721,5.66847984,2438.1,2437.7,2.05041]
[1751181775026,5.66847984,2438.1,2438.0,0.82006]
[1751181775027,8.56056618,2438.1,2438.0,0.82006]
[1751181775323,39.49156618,2438.1,2438.0,0.82006]
[1751181775719,37.03088634,2438.1,2438.0,0.82006]
[1751181779521,36.21084634,2438.1,2438.0,0.82006]
[1751181782926,5.27984634,2438.1,2438.0,0.82006]
[1751181783123,36.20684634,2438.1,2438.0,0.82006]
[1751181783825,5.27984634,2438.1,2438.0,0.82006]
[1751181784032,3.2078,2438.1,2438.0,3.58020634]
[1751181784228,2.07204634,2438.3,2438.2,0.81999]
[1751181784430,32.99904634,2438.3,2438.2,0.81999]
[1751181784629,32.99804634,2438.3,2438.2,0.81999]
[1751181784931,2.07204634,2438.3,2438.2,1.51699]
[1751181785126,8.33004634,2438.3,2438.2,1.51699]
[1751181785317,32.99704634,2438.3,2438.2,1.51699]
[1751181785816,2.07204634,2438.3,2438.2,0.81999]
[1751181786021,3.62110634,2438.3,2438.2,0.81999]
[1751181786225,34.54610634,2438.3,2438.2,0.81999]
[1751181788432,3.62110634,2438.3,2438.2,0.81999]
[1751181788732,34.54510634,2438.3,2438.2,0.81999]
[1751181788935,3.62110634,2438.3,2438.2,0.81999]
[1751181789230,34.54510634,2438.3,2438.2,0.81999]
[1751181789632,2.80114634,2438.3,2438.2,0.81999]
[1751181789826,33.72514634,2438.3,2438.2,0.81999]
[1751181790134,34.54510634,2438.3,2438.2,0.81999]
[1751181792134,33.72514634,2438.3,2438.2,0.81999]
[1751181795536,2.80114634,2438.3,2438.2,0.81999]
[1751181795733,32.99504634,2438.3,2438.2,0.81999]
[1751181795942,2.07204634,2438.3,2438.2,0.81999]
[1751181796234,32.99504634,2438.3,2438.2,0.81999]
[1751181796434,32.99504634,2438.3,2438.2,2.27749]
[1751181797226,2.07204634,2438.3,2438.2,2.27749]
[1751181797436,3.2078,2438.4,2438.3,0.81996]
[1751181797627,30.923,2438.5,2438.4,0.81992]
[1751181797837,5.66847984,2438.8,2438.4,4.12184634]
[1751181798035,6.26079128,2439.0,2438.8,0.81979]
[1751181798036,8.71867984,2438.9,2438.8,0.81979]
[1751181798237,30.928,2438.9,2438.8,0.81979]
[1751181799041,30.928,2438.9,2438.8,2.24229]
[1751181801438,30.928,2438.9,2438.8,0.81979]
[1751181801639,30.928,2438.9,2438.8,41.61979]
[1751181806351,3.77851986,2439.0,2438.9,0.81976]
[1751181806540,34.70551986,2439.0,2438.9,0.81976]
[1751181807147,37.91331986,2439.0,2438.9,0.81976]
[1751181807548,6.16656986,2439.0,2438.9,0.81976]
[1751181807755,37.09256986,2439.0,2438.9,0.81976]
[1751181808055,37.91228986,2439.0,2438.9,0.81976]
[1751181814248,37.09256986,2439.0,2438.9,0.81976]
[1751181814456,37.91228986,2439.0,2438.9,0.81976]
[1751181816341,6.98628986,2439.0,2438.9,0.81976]
[1751181816547,37.90728986,2439.0,2438.9,0.81976]
[1751181817858,13.24528986,2439.0,2438.9,0.81976]
[1751181818161,37.90728986,2439.0,2438.9,0.81976]
[1751181818564,37.08756986,2439.0,2438.9,0.81976]
[1751181818865,37.90728986,2439.0,2438.9,0.81976]
[1751181820262,37.08756986,2439.0,2438.9,0.81976]
[1751181820659,6.16656986,2439.0,2438.9,0.81976]
[1751181820860,37.08556986,2439.0,2438.9,0.81976]
[1751181821459,37.90528986,2439.0,2438.9,0.81976]
[1751181822665,37.01798908,2439.0,2438.9,0.81976]
[1751181827461,36.19726908,2439.0,2438.9,0.81976]
[1751181827660,36.19726908,2439.0,2438.9,2.23806]
[1751181830264,36.19726908,2439.0,2438.9,0.81976]
[1751181831164,32.98946908,2439.0,2438.9,0.81976]
[1751181831578,35.06093816,2439.0,2438.5,4.84048871]
[1751181831878,2.07146908,2438.6,2438.5,3.13107871]
[1751181832170,26.74046908,2438.6,2438.5,43.70069]
[1751181834675,27.62875658,2438.6,2438.5,43.70069]
[1751181836771,3.9112,2438.8,2438.7,0.81982]
[1751181836972,30.926,2438.8,2438.7,0.81982]
[1751181837474,30.926,2438.8,2438.7,2.83852]
[1751181838674,6.259,2438.8,2438.7,2.83852]
[1751181838977,30.925,2438.8,2438.7,2.83852]
[1751181840486,2.95975658,2438.9,2438.8,0.81979]
[1751181840772,33.88475658,2438.9,2438.8,2.21509]
[1751181840974,33.88475658,2438.9,2438.8,2.94379]
[1751181846083,9.21875658,2438.9,2438.8,2.94379]
[1751181846380,33.88475658,2438.9,2438.8,2.94379]
[1751181854587,32.99643585,2438.9,2438.8,2.94379]
[1751181855283,32.99643585,2438.9,2438.8,1.54849]
[1751181855689,33.72953585,2438.9,2438.8,1.54849]
[1751181857489,33.72453585,2438.9,2438.8,0.81979]
[1751181866488,3.2078,2439.1,2439.0,0.81972]
[1751181866797,36.19823585,2439.1,2439.0,0.81972]
[1751181866994,29.93723585,2439.1,2439.0,0.81972]
[1751181869998,5.27923585,2439.1,2439.0,0.81972]
[1751181870200,29.93723585,2439.1,2439.0,0.81972]
[1751181871004,5.27923585,2439.1,2439.0,0.81972]
[1751181871203,29.93723585,2439.1,2439.0,0.81972]
[1751181872202,26.72943585,2439.1,2439.0,0.81972]
[1751181874204,2.07143585,2439.1,2439.0,0.81972]
[1751181874403,26.72943585,2439.1,2439.0,0.81972]
[1751181875500,2.07143585,2439.1,2439.0,0.81972]
[1751181875806,9.4638,2439.3,2439.2,0.81966]
[1751181876106,5.27923585,2439.3,2439.2,0.81966]
[1751181876304,36.19223585,2439.3,2439.2,0.81966]
[1751181877302,5.27923585,2439.3,2439.2,0.81966]
[1751181877506,3.2078,2439.3,2439.2,0.81966]
[1751181877805,36.19223585,2439.3,2439.2,0.81966]
[1751181878009,5.27923585,2439.3,2439.2,0.81966]
[1751181878407,5.27923585,2439.3,2439.2,2.19586]
[1751181879200,5.27923585,2439.3,2439.2,0.81966]
[1751181880106,6.09885585,2439.3,2439.2,0.81966]
[1751181880307,7.54505585,2439.3,2439.2,0.81966]
[1751181880605,6.72543585,2439.3,2439.2,0.81966]
[1751181880805,7.54505585,2439.3,2439.2,0.81966]
[1751181881700,7.54505585,2439.3,2438.9,2.04938]
[1751181881701,6.72543585,2439.3,2438.8,2.31381851]
[1751181881906,2.07143585,2438.9,2438.8,2.45380851]
[1751181884815,2.07143585,2438.9,2438.8,0.81979]
[1751181886011,2.07143585,2438.9,2438.8,4.02759]
[1751181887609,2.07143585,2438.9,2438.8,0.81979]
[1751181887816,2.07143585,2438.9,2438.8,4.02759]
[1751181889310,2.07143585,2438.9,2438.8,5.66160851]
[1751181889813,2.07143585,2438.9,2438.8,7.00160851]
[1751181891111,2.07143585,2438.9,2438.8,5.36759]
[1751181891418,2.07143585,2438.9,2438.8,7.00160851]
[1751181892308,2.07143585,2438.9,2438.8,3.79380851]
[1751181892925,2.07143585,2439.0,2438.9,0.81976]
[1751181893310,2.07143585,2439.0,2438.9,1.48166]
[1751181899014,2.19138,2439.2,2439.1,0.81969]
[1751181899015,1.3717,2439.2,2439.1,0.81969]
[1751181899216,9.69913585,2439.2,2439.1,0.81969]
[1751181901926,3.44313585,2439.2,2439.1,0.81969]
[1751181902128,9.69913585,2439.2,2439.1,0.81969]
[1751181906329,0.81965,2439.3,2439.1,0.81969]
[1751181906330,5.66578071,2439.4,2439.3,0.81962]
[1751181906630,13.99321656,2439.4,2439.3,0.81962]
[1751181908334,11.53523585,2439.4,2439.3,0.81962]
[1751181910938,8.32743585,2439.4,2439.3,0.81962]
[1751181911734,2.07143585,2439.4,2439.3,0.81962]
[1751181911938,32.98243585,2439.4,2439.3,0.81962]
[1751181916042,32.98143585,2439.4,2439.3,0.81962]
[1751181919949,33.80102585,2439.4,2439.3,0.81962]
[1751181920947,32.98143585,2439.4,2439.3,0.81962]
[1751181921143,33.80102585,2439.4,2439.3,0.81962]
[1751181923149,32.98143585,2439.4,2439.3,0.81962]
[1751181923849,33.80102585,2439.4,2439.3,0.81962]
[1751181924749,2.07143585,2439.4,2439.3,0.81962]
[1751181925044,32.98143585,2439.4,2439.3,0.81962]
[1751181927742,33.80102585,2439.4,2439.3,0.81962]
[1751181928644,32.98143585,2439.4,2439.3,0.81962]
[1751181929153,33.80102585,2439.4,2439.3,0.81962]
[1751181929447,32.98143585,2439.4,2439.3,0.81962]
[1751181930450,2.07143585,2439.4,2439.3,0.81962]
[1751181930649,32.98143585,2439.4,2439.3,0.81962]
[1751181932651,2.07143585,2439.4,2439.3,0.81962]
[1751181932856,32.98043585,2439.4,2439.3,0.81962]
[1751181933256,2.07143585,2439.4,2439.3,0.81962]
[1751181933449,32.98043585,2439.4,2439.3,0.81962]
[1751181933651,33.80002585,2439.4,2439.3,0.81962]
[1751181934363,31.6365,2439.5,2439.4,0.81959]
[1751181934567,33.70793585,2439.5,2439.4,0.81959]
[1751181937259,35.7793717,2439.5,2439.4,0.81959]
[1751181938465,38.23735241,2439.5,2439.4,0.81959]
[1751181941666,39.05690241,2439.5,2439.4,0.81959]
[1751181942867,14.40290241,2439.5,2439.4,0.81959]
[1751181943071,36.5989217,2439.5,2439.4,0.81959]
[1751181943461,35.7793717,2439.5,2439.4,0.81959]
[1751181944169,36.5989217,2439.5,2439.4,0.81959]
[1751181945372,35.7793717,2439.5,2439.4,0.81959]
[1751181949171,9.05393585,2439.5,2439.4,0.81959]
[1751181949374,32.97943585,2439.5,2439.4,0.81959]
[1751181949575,35.0508717,2439.5,2439.4,0.81959]
[1751181950077,35.8704217,2439.5,2439.4,0.81959]
[1751181950772,35.0508717,2439.5,2439.4,0.81959]
[1751181955880,32.97943585,2439.5,2439.4,0.81959]
[1751181957181,35.0508717,2439.5,2439.4,0.81959]
[1751181957373,32.97943585,2439.5,2439.4,0.81959]
[1751181963282,2.07143585,2439.5,2439.4,0.81959]
[1751181963487,32.97843585,2439.5,2439.4,1.53099]
[1751181965388,2.07143585,2439.5,2439.4,1.53099]
[1751181965687,32.97843585,2439.5,2439.4,1.53099]
[1751181966186,32.97843585,2439.5,2439.4,42.33099]
[1751181966588,32.97843585,2439.5,2439.4,1.53099]
[1751181967087,8.32643585,2439.5,2439.4,0.81959]
[1751181967287,2.07143585,2439.5,2439.4,0.81959]
[1751181968384,2.07143585,2439.5,2439.4,1.50879]
[1751181969982,3.05150646,2440.1,2439.5,2.04889]
[1751181970182,8.19326903,2440.9,2440.3,0.81929]
[1751181970183,3.27778038,2440.4,2440.3,0.81929]
[1751181970384,2.07143585,2440.3,2440.2,0.81932]
[1751181970584,0.6601,2440.7,2440.6,0.81919]
[1751181970787,33.65153585,2440.7,2440.6,0.81919]
[1751181971189,6.9141,2440.7,2440.6,0.81919]
[1751181971389,33.65353585,2440.7,2440.6,0.81919]
[1751181971995,0.81919,2440.6,2440.5,3.2078]
[1751181972187,33.20989,2440.6,2440.5,4.02702]
[1751181972390,33.20989,2440.6,2440.5,3.2078]
[1751181972790,0.8193,2440.3,2440.0,4.02717]
[1751181972995,1.52223,2440.2,2440.0,3.2078]
[1751181973297,27.56578585,2440.1,2440.0,3.2078]
[1751181974801,27.63166546,2440.1,2440.0,4.02719]
[1751181975095,28.45101546,2440.1,2440.0,3.2078]
[1751181977090,25.49435,2440.1,2440.0,4.02719]
[1751181979107,25.49435,2440.1,2440.0,3.2078]
[1751181980400,25.49435,2440.1,2440.0,4.02719]
[1751181982104,7.77424,2440.2,2440.1,0.81935]
[1751181982294,0.81932,2440.2,2440.1,0.81935]
[1751181982498,31.73732,2440.2,2440.1,0.81935]
[1751181983801,2.95666546,2440.3,2440.0,4.02716]
[1751181984001,0.81935,2440.1,2440.0,4.02716]
[1751181985403,0.81931,2440.3,2440.2,0.8193]
[1751181985600,34.69197546,2440.3,2440.2,0.8193]
[1751181987704,34.69197546,2440.3,2440.0,3.2078]
[1751181987893,0.81935,2440.2,2440.1,0.81934]
[1751181990695,2.04793,2440.7,2440.0,3.8954]
[1751181990696,2.44782341,2440.8,2440.2,2.04831]
[1751181990897,5.31055662,2441.0,2440.2,2.04831]
[1751181990898,0.81907,2441.0,2440.8,0.81909]
[1751181991203,30.968,2440.9,2440.8,0.81909]
[1751181991403,2.44782341,2441.2,2440.6,45.14706546]
[1751181991702,30.973,2441.1,2441.0,0.81905]
[1751181992709,2.95666546,2441.2,2441.1,0.81902]
[1751181992902,34.74764546,2441.2,2441.1,0.81902]
[1751181993107,34.74664546,2441.2,2441.1,0.81902]
[1751181994007,0.81903,2441.1,2441.0,0.81903]
[1751181994209,3.77569546,2441.1,2441.0,0.81903]
[1751181994508,2.95666546,2441.1,2441.0,0.81903]
[1751181994701,3.77569546,2441.1,2440.9,4.02687]
[1751181994901,24.717,2441.0,2440.9,4.02687]
[1751181995101,25.53605,2441.0,2440.9,3.2078]
[1751181995809,25.53605,2441.0,2440.9,4.02689]
[1751181997213,25.53605,2441.0,2440.9,3.2078]
[1751182000120,0.81905,2441.0,2440.9,3.2078]
[1751182000424,31.84905,2441.0,2440.9,3.2078]
[1751182008325,32.57755,2441.0,2440.9,3.2078]
[1751182009336,0.81915,2440.7,2440.6,44.6859]
[1751182009526,28.49981546,2440.7,2440.6,44.6859]
[1751182010125,28.49981546,2440.7,2440.6,3.8859]
[1751182011724,34.79181546,2440.7,2440.6,0.6781]
[1751182011927,0.81919,2440.6,2440.5,40.8]
[1751182012328,0.81922,2440.5,2440.4,1.48724]
[1751182012626,25.54222,2440.5,2440.4,1.48724]
[1751182012829,25.54222,2440.5,2440.4,43.64904]
[1751182014227,25.54222,2440.5,2440.4,44.86651976]
[1751182015421,25.54222,2440.5,2440.4,4.06651976]
[1751182018324,25.54222,2440.5,2440.4,2.84904]
[1751182018827,25.54222,2440.5,2440.4,2.0298]
[1751182019019,25.54222,2440.5,2440.4,2.84905]
[1751182020227,28.49888546,2440.5,2440.4,3.25053493]
[1751182020431,28.49888546,2440.5,2440.4,1.88873493]
[1751182020729,28.49888546,2440.5,2440.4,0.668]
[1751182025331,0.81925,2440.4,2440.3,3.9079]
[1751182025527,7.11225,2440.4,2440.3,3.2078]
[1751182031234,7.11225,2440.4,2440.1,1.4084]
[1751182031235,0.81937,2440.1,2440.0,4.02717]
[1751182031437,34.78003546,2440.1,2440.0,4.70667]
[1751182031636,34.78002546,2440.1,2440.0,4.70667]
[1751182032835,33.97966546,2440.1,2440.0,4.70667]
[1751182033038,33.97966546,2440.1,2440.0,6.03407]
[1751182033439,34.79902546,2440.1,2440.0,4.70667]
[1751182034131,34.79902546,2440.1,2440.0,6.03407]
[1751182037240,33.97966546,2440.1,2440.0,6.03407]
[1751182037742,34.79902546,2440.1,2440.0,6.03407]
[1751182039437,31.023,2440.1,2440.0,6.03407]
[1751182039632,31.84236,2440.1,2440.0,6.03407]
[1751182041240,10.06902546,2440.1,2440.0,4.70667]
[1751182047852,3.77602546,2440.1,2440.0,4.70667]
[1751182048150,10.07002546,2440.1,2440.0,4.70667]
[1751182049952,10.07002546,2440.1,2440.0,3.8873]
[1751182050153,10.07002546,2440.1,2440.0,4.70669]
[1751182050451,7.11336,2440.1,2440.0,4.70669]
[1751182050652,7.11336,2440.1,2440.0,6.09299]
[1751182056462,7.11336,2440.1,2440.0,4.70669]
[1751182058563,9.18273797,2440.1,2440.0,4.70669]
[1751182067170,9.18273797,2440.1,2440.0,1.49889]
[1751182073074,9.18273797,2440.1,2440.0,0.81939]
[1751182073275,0.81939,2440.0,2439.9,2.03986877]
[1751182073573,1.49559,2440.0,2439.9,2.03986877]
[1751182075475,0.6762,2440.0,2439.9,2.03986877]
[1751182075975,1.49559,2440.0,2439.9,2.03986877]
[1751182080382,1.49559,2440.0,2439.9,1.22047877]
[1751182080581,0.81942,2439.9,2439.8,5.13197877]
[1751182080781,2.88879797,2439.9,2439.8,5.13197877]
[1751182081380,2.88879797,2439.9,2439.8,5.95140877]
[1751182083386,2.88879797,2439.9,2439.8,4.42827877]
[1751182083577,2.88879797,2439.9,2439.8,5.24773877]
[1751182084073,2.88879797,2439.9,2439.8,4.42827877]
[1751182085386,2.88879797,2439.9,2439.8,5.24773877]
[1751182085789,2.88879797,2439.9,2439.8,4.42827877]
[1751182086082,2.88879797,2439.9,2439.8,5.24773877]
[1751182087085,2.88879797,2439.9,2439.8,4.42827877]
[1751182089184,2.88879797,2439.9,2439.8,3.2078]
[1751182099790,0.81949,2439.7,2439.6,2.1626]
[1751182099993,9.16786797,2439.7,2439.6,6.8124]
[1751182100192,9.16786797,2439.7,2439.6,5.9929]
[1751182100392,9.16786797,2439.7,2439.6,6.81242]
[1751182101393,9.16786797,2439.7,2439.6,5.9929]
[1751182101589,9.16786797,2439.7,2439.6,6.81242]
[1751182106192,0.6762,2440.0,2439.6,5.9929]
[1751182106398,2.06937797,2439.8,2439.7,1.3397]
[1751182106595,2.88883797,2439.8,2439.7,2.15919]
[1751182116404,2.06937797,2439.8,2439.7,2.15919]
[1751182117512,2.88883797,2439.8,2439.7,2.15919]
[1751182121112,0.81946,2439.8,2439.7,2.15919]
[1751182121310,9.15483797,2439.8,2439.7,2.15919]
[1751182121515,2.88883797,2439.8,2439.7,2.15919]
[1751182121717,0.81945,2439.9,2439.8,0.81943]
[1751182121916,9.15482797,2439.9,2439.8,2.14003]
[1751182124119,9.15482797,2439.9,2439.8,1.3206]
[1751182125918,0.81946,2439.8,2439.7,2.03994877]
[1751182127116,0.81946,2439.8,2439.7,3.46914877]
[1751182129825,9.15482797,2439.9,2439.8,0.81946]
[1751182130915,8.33537797,2439.9,2439.8,0.81946]
[1751182131917,8.33537797,2439.9,2439.8,2.20436]
[1751182133423,9.15479797,2439.9,2439.8,2.20436]
[1751182133621,9.15479797,2439.9,2439.8,3.42483877]
[1751182134220,0.81941,2440.0,2439.9,0.8194]
[1751182134430,9.15478797,2440.0,2439.9,1.5099]
[1751182137129,9.15478797,2440.0,2439.9,0.6905]
[1751182137928,9.15478797,2440.0,2439.9,1.50992]
[1751182138226,9.15478797,2440.0,2439.9,0.6905]
[1751182139829,0.81946,2439.8,2439.7,1.22047877]
[1751182140031,0.81949,2439.7,2439.6,4.42827877]
[1751182140229,7.08549,2439.7,2439.6,4.42827877]
[1751182141630,7.08549,2439.7,2439.6,5.24779877]
[1751182141931,7.08549,2439.7,2439.6,4.42827877]
[1751182148934,9.15486797,2439.7,2439.6,4.42827877]
[1751182149337,10.55586797,2439.7,2439.6,4.42827877]
[1751182149738,8.48649,2439.7,2439.6,4.42827877]
[1751182150041,8.48649,2439.7,2439.6,3.2078]
[1751182155540,7.08549,2439.7,2439.6,3.2078]
[1751182156839,0.81956,2439.5,2439.4,0.81959]
[1751182157143,2.88893797,2439.5,2439.4,4.02739]
[1751182157338,2.88893797,2439.5,2439.4,3.2078]
[1751182158044,0.81956,2439.5,2439.4,4.02739]
[1751182158243,9.15893797,2439.5,2439.4,4.02739]
[1751182158444,9.15893797,2439.5,2439.4,5.37039]
[1751182163341,9.15893797,2439.5,2439.4,2.16259]
[1751182171052,2.88892797,2439.6,2439.5,0.81956]
[1751182171251,0.81951,2439.7,2439.6,0.81949]
[1751182171553,9.15888797,2439.7,2439.6,4.02729]
[1751182172754,9.15888797,2439.7,2439.6,4.73309]
[1751182176152,9.15888797,2439.7,2439.6,1.52529]
[1751182176451,9.15888797,2439.7,2439.6,4.73309]
[1751182181058,9.15888797,2439.7,2439.6,1.52529]
[1751182181357,9.15888797,2439.7,2439.6,4.73309]
[1751182184158,9.15888797,2439.7,2439.6,1.52529]
[1751182184359,9.15888797,2439.7,2439.6,4.73309]
[1751182185159,9.15888797,2439.7,2439.6,1.52529]
[1751182185360,9.15888797,2439.7,2439.6,4.73309]
[1751182186164,2.88888797,2439.7,2439.6,4.73309]
[1751182186459,9.15488797,2439.7,2439.6,4.73309]
[1751182187364,9.15488797,2439.7,2439.6,3.2078]
[1751182187551,9.15488797,2439.7,2439.5,2.04002877]
[1751182187552,0.81952,2439.6,2439.5,2.04002877]
[1751182187757,0.81952,2439.6,2439.5,0.81955]
[1751182188964,0.81956,2439.5,2439.4,2.04004877]
[1751182189166,3.59123797,2439.5,2439.4,2.04004877]
[1751182189365,3.59123797,2439.5,2439.4,0.81957]
[1751182190568,2.77167797,2439.5,2439.3,5.54471851]
[1751182190866,3.59126797,2439.5,2439.4,0.81959]
[1751182192774,0.81959,2439.4,2439.3,5.95410332]
[1751182193069,7.08559,2439.4,2439.3,5.95410332]
[1751182193370,6.266,2439.4,2439.3,5.95410332]
[1751182194668,7.08559,2439.4,2439.3,5.95410332]
[1751182200480,6.266,2439.4,2439.3,5.95410332]
[1751182201892,6.266,2439.4,2439.3,7.38810332]
[1751182204894,6.266,2439.4,2439.3,4.18030332]
[1751182211693,0.81954,2439.6,2439.3,5.43008129]
[1751182211901,6.265,2439.5,2439.4,2.25069]
[1751182212095,6.265,2439.5,2439.4,6.68229332]
[1751182212394,2.88888797,2439.7,2439.6,0.81952]
[1751182212900,9.15388797,2439.7,2439.6,0.81952]
[1751182213191,2.88886797,2439.7,2439.6,1.54312]
[1751182213398,9.15386797,2439.7,2439.6,1.54312]
[1751182214604,2.44782341,2439.9,2439.8,0.81946]
[1751182214794,6.265,2439.9,2439.8,0.81946]
[1751182214996,7.08442,2439.9,2439.8,0.81946]
[1751182216105,0.81942,2439.9,2439.8,0.81946]
[1751182216306,7.08442,2439.9,2439.8,0.81946]
[1751182216999,50.11078797,2440.0,2439.9,0.81942]
[1751182217204,56.37578797,2440.0,2439.9,0.81942]
[1751182217907,56.37578797,2440.0,2439.7,4.662]
[1751182217908,0.81943,2439.9,2439.8,0.81944]
[1751182218207,2.88880797,2439.9,2439.8,0.81944]
[1751182218807,2.06937797,2439.9,2439.8,0.81944]
[1751182219303,2.88879797,2439.9,2439.8,0.81944]